bitfinex/quotes_SOLUSD_20220302
["timestamp","ask_amount","ask_price","bid_price","bid_amount"]
[1646227421919,11.54,102.17,102.04,0.45028553]
[1646227422119,11.54,102.17,102.05,58.09]
[1646227422318,11.54,102.17,102.07,96.57]
[1646227422519,11.54,102.17,102.07,0.70028553]
[1646227422719,11.54,102.17,102.08,52.41872704]
[1646227422923,11.54,102.17,102.08,52.66872704]
[1646227423121,11.79,102.17,102.08,52.66872704]
[1646227423319,11.54,102.17,102.08,52.66872704]
[1646227423619,26.2307,102.17,102.08,52.41872704]
[1646227423819,28.5063421,102.17,102.05,37.7451]
[1646227424021,17.6736421,102.17,102.03,5.0]
[1646227424324,23.49895881,102.16,101.99,14.4505]
[1646227424522,15.392,102.15,102.0,6.0]
[1646227424721,17.66757227,102.15,102.0,6.0]
[1646227424920,2.27557227,102.14,102.01,42.92488753]
[1646227425120,14.7001,102.11,102.01,57.62498753]
[1646227426320,14.7001,102.11,102.01,42.92488753]
[1646227427124,14.7001,102.11,102.01,139.49488753]
[1646227427520,11.54,102.12,102.01,154.19388753]
[1646227427721,26.2368,102.13,102.02,0.39859079]
[1646227427922,26.2368,102.13,102.02,5.39859079]
[1646227428124,26.4868,102.13,102.03,46.97013532]
[1646227428323,26.4868,102.13,102.03,201.88013532]
[1646227429123,26.4868,102.13,102.04,0.44762893]
[1646227429325,26.2368,102.13,102.04,0.44762893]
[1646227430924,26.2368,102.13,102.03,201.88013532]
[1646227430925,26.2368,102.13,102.03,216.57623532]
[1646227431328,26.2368,102.13,102.03,47.22013532]
[1646227431524,28.76270792,102.13,102.03,46.97013532]
[1646227431725,52.26166673,102.13,102.03,46.97013532]
[1646227432127,53.9332257,102.13,102.03,46.97013532]
[1646227432332,52.26166673,102.13,102.03,46.97013532]
[1646227433226,3.888,102.12,102.03,46.97013532]
[1646227433427,14.7005,102.1,102.03,46.97013532]
[1646227434029,14.7005,102.1,102.0,23.6377]
[1646227434231,2.28110735,102.09,102.01,6.0]
[1646227434530,11.54,102.08,102.0,23.6377]
[1646227434933,14.705,102.07,101.98,23.2216]
[1646227435130,11.54,102.06,101.97,53.26027564]
[1646227435332,11.54,102.05,101.97,53.26027564]
[1646227435531,15.42101438,102.05,101.94,14.5646]
[1646227435732,60.7357183,102.05,101.94,14.5646]
[1646227435932,3.93296579,102.04,101.94,14.5646]
[1646227436133,15.418,102.03,101.94,14.5646]
[1646227436331,36.69253282,102.03,101.94,14.5646]
[1646227436531,34.41142547,102.03,101.94,49.29443241]
[1646227436731,27.43710003,102.02,101.9,14.6493]
[1646227436931,11.54,102.01,101.9,14.6493]
[1646227437134,14.7174,101.99,101.9,169.3093]
[1646227437352,11.54,102.01,101.9,169.3093]
[1646227437533,11.54,102.01,101.92,58.09]
[1646227437734,11.54,102.01,101.93,56.46549758]
[1646227438934,11.54,102.01,101.93,154.52549758]
[1646227439132,14.7149,102.0,101.93,212.86549758]
[1646227439334,11.54,102.03,101.93,212.86549758]
[1646227439633,84.08105881,102.04,101.93,212.86549758]
[1646227440041,14.7127,102.02,101.93,212.86549758]
[1646227440940,2.2916461,102.01,101.93,56.46549758]
[1646227441138,26.2549,102.0,101.93,56.46549758]
[1646227441540,17.0065461,102.0,101.89,46.8658]
[1646227441740,37.43266575,102.0,101.89,46.8658]
[1646227441940,37.43266575,102.0,101.89,144.9258]
[1646227442445,14.7207,101.96,101.9,49.81468866]
[1646227442743,60.6089,101.99,101.9,49.81468866]
[1646227443742,2.29249937,101.98,101.87,46.0568]
[1646227443942,17.00019913,101.97,101.87,46.0568]
[1646227444143,17.00019913,101.97,101.85,23.4388]
[1646227444343,27.23287911,101.96,101.85,23.4388]
[1646227444543,11.54,101.95,101.85,23.4388]
[1646227444744,14.7244,101.94,101.86,50.67940679]
[1646227444961,60.6287,101.95,101.86,50.67940679]
[1646227445661,11.54,101.95,101.87,0.39946125]
[1646227446064,14.7199,101.97,101.86,221.54930679]
[1646227446264,3.91,101.99,101.9,98.06]
[1646227446465,15.45,101.99,101.91,51.12018288]
[1646227446667,15.45,101.99,101.91,207.01765811]
[1646227446668,11.54,101.99,101.91,207.01765811]
[1646227446868,2.29249937,102.02,101.91,207.01765811]
[1646227447065,14.7141,102.01,101.92,0.50252477]
[1646227447266,14.7141,102.01,101.93,98.06]
[1646227447465,14.7141,102.01,101.94,47.49150379]
[1646227447665,14.7141,102.01,101.94,203.89150379]
[1646227447868,51.5571,102.04,101.94,203.89150379]
[1646227448265,74.93177054,102.04,101.94,203.89150379]
[1646227448466,75.18177054,102.04,101.94,145.80150379]
[1646227448668,14.7118,102.02,101.94,145.80150379]
[1646227449868,14.7118,102.02,101.94,203.89150379]
[1646227450268,27.29667054,102.04,101.94,203.89150379]
[1646227450467,27.29667054,102.04,101.94,218.60140379]
[1646227450670,3.876,102.05,101.94,218.60140379]
[1646227450870,74.23789937,102.07,101.97,46.7595046]
[1646227451069,51.31999937,102.07,101.97,47.0095046]
[1646227451270,74.28132751,102.07,101.97,47.0095046]
[1646227451872,74.28132751,102.07,101.97,145.0695046]
[1646227452070,104.71721792,102.09,101.97,217.8657046]
[1646227452470,104.71721792,102.09,101.99,143.52057644]
[1646227452770,107.00971729,102.09,101.99,143.77057644]
[1646227453371,98.06,102.08,101.95,5.0]
[1646227453570,11.54,102.07,101.93,70.4394]
[1646227453770,71.7053895,102.07,101.93,70.4394]
[1646227454070,27.02230942,102.06,101.93,128.5294]
[1646227454270,24.72981005,102.06,101.94,56.01070393]
[1646227454473,14.7082,102.05,101.98,98.06]
[1646227454673,49.0272,102.07,101.99,52.74713647]
[1646227454876,2.29249937,102.08,101.99,209.14713647]
[1646227455073,37.36199937,102.11,101.99,209.14713647]
[1646227455276,25.82199937,102.11,101.99,209.14713647]
[1646227455675,40.52149937,102.11,102.03,153.01024732]
[1646227455875,81.85384562,102.15,102.03,211.35024732]
[1646227456073,40.3173,102.17,102.03,219.83424732]
[1646227456074,11.54,102.17,102.03,219.83424732]
[1646227456275,3.916,102.16,102.03,252.19019532]
[1646227456474,3.916,102.18,102.03,252.19019532]
[1646227456674,14.6939,102.15,102.07,98.06]
[1646227456974,52.8903,102.18,102.08,54.6459795]
[1646227457179,65.99612798,102.18,102.03,11.79]
[1646227457374,69.91036011,102.17,102.03,0.25]
[1646227457575,16.95861786,102.16,102.01,23.8117]
[1646227457775,16.15526295,102.13,102.01,43.5107]
[1646227457975,14.7007,102.13,102.01,43.5107]
[1646227458178,14.7007,102.13,102.02,58.20843934]
[1646227458376,2.29249937,102.12,102.02,58.20843934]
[1646227459176,23.29449284,102.11,101.95,49.1026]
[1646227459377,13.02411337,102.1,101.95,49.1026]
[1646227459577,58.06572395,102.1,101.95,49.1026]
[1646227459775,2.29249937,102.09,101.95,49.1026]
[1646227459978,11.54,102.08,101.95,49.1026]
[1646227460178,14.7105,102.03,101.96,43.25703107]
[1646227461186,49.0448,102.04,101.96,43.25703107]
[1646227461481,2.29249937,102.04,101.96,43.25703107]
[1646227461884,11.54,102.03,101.96,43.25703107]
[1646227462084,11.54,102.03,101.9,37.8668]
[1646227462085,14.7164,101.99,101.9,37.8668]
[1646227462285,15.43706123,102.02,101.9,23.1518]
[1646227462688,2.29249937,102.01,101.9,23.1518]
[1646227462886,11.54,102.0,101.9,23.1518]
[1646227463088,3.923,101.99,101.91,45.1071776]
[1646227463290,14.719,101.97,101.85,34.82766739]
[1646227463491,11.54,101.98,101.84,70.38461846]
[1646227463690,13.83249937,101.98,101.84,70.38461846]
[1646227463891,2.29249937,101.96,101.84,70.38461846]
[1646227464091,15.416,101.97,101.85,98.06]
[1646227464289,15.416,101.97,101.86,52.11887973]
[1646227465093,14.7241,101.94,101.86,52.11887973]
[1646227465491,14.7241,101.94,101.86,52.36887973]
[1646227466397,14.7215,101.96,101.86,52.36887973]
[1646227466994,14.7215,101.96,101.86,110.45887973]
[1646227467193,14.7215,101.96,101.87,98.06]
[1646227467393,14.7215,101.96,101.88,43.57319167]
[1646227467594,17.66249937,101.99,101.88,199.51810227]
[1646227467799,24.9042,102.0,101.89,0.60835559]
[1646227467994,11.54,102.03,101.89,0.60835559]
[1646227467995,3.923,102.02,101.89,0.60835559]
[1646227468194,3.923,102.02,101.92,156.15]
[1646227468393,3.923,102.02,101.92,0.25]
[1646227468595,49.0472,102.03,101.93,0.60835559]
[1646227468792,49.0472,102.03,101.93,207.49805645]
[1646227468994,49.0472,102.03,101.93,207.13970086]
[1646227469193,17.75449937,102.05,101.93,207.13970086]
[1646227469393,17.75449937,102.05,101.94,0.60835559]
[1646227469594,14.7127,102.02,101.94,0.60835559]
[1646227469793,55.25139937,102.05,101.94,0.60835559]
[1646227469995,55.25139937,102.05,101.93,221.85010086]
[1646227470195,3.922,102.05,101.94,0.60835559]
[1646227470394,3.876,102.06,101.96,53.1211124]
[1646227470595,2.2925542,102.07,101.98,148.83601579]
[1646227471119,14.71,102.04,101.98,50.77601579]
[1646227471319,13.8325542,102.07,101.98,50.77601579]
[1646227471517,3.783,102.06,101.98,50.77601579]
[1646227471919,6.0755542,102.06,101.98,50.77601579]
[1646227472119,2.2925542,102.05,101.98,50.77601579]
[1646227472719,2.2925542,102.07,101.98,148.83601579]
[1646227472919,24.3473,102.08,101.98,206.92601579]
[1646227473319,24.3473,102.08,101.98,108.86601579]
[1646227473518,24.3473,102.08,101.98,109.11601579]
[1646227473919,14.7063,102.06,101.98,109.11601579]
[1646227474119,14.9563,102.06,101.98,51.02601579]
[1646227474318,14.9563,102.06,101.98,149.08601579]
[1646227474520,2.2925542,102.1,101.98,209.72505582]
[1646227474718,3.92,102.11,101.98,209.72505582]
[1646227474919,14.7012,102.1,101.98,235.96885582]
[1646227475120,14.7012,102.1,102.02,156.15]
[1646227475321,14.7012,102.1,102.03,201.77006161]
[1646227475722,23.6548,102.14,102.03,201.77006161]
[1646227475921,66.24272849,102.15,102.03,204.56910164]
[1646227476121,14.6983,102.12,102.03,219.26570164]
[1646227476821,14.6983,102.12,102.03,216.71666161]
[1646227477024,14.6983,102.12,102.03,158.62666161]
[1646227477223,14.6983,102.12,102.06,56.20494473]
[1646227477622,14.6983,102.12,102.06,212.35494473]
[1646227477823,37.21622509,102.15,102.06,212.35494473]
[1646227477824,3.753,102.17,102.06,212.60494473]
[1646227478025,3.71,102.18,102.06,114.54494473]
[1646227478223,3.71,102.18,102.06,118.46094473]
[1646227478423,6.0025542,102.18,102.06,158.43094473]
[1646227478622,6.0025542,102.18,102.06,154.51494473]
[1646227478826,16.9825542,102.18,102.08,153.39604163]
[1646227479024,14.69,102.18,102.08,153.64604163]
[1646227479225,14.69,102.18,102.1,57.51129884]
[1646227479429,2.2925542,102.2,102.1,57.76129884]
[1646227479626,70.8589,102.21,102.1,57.76129884]
[1646227480226,22.7988,102.21,102.1,57.76129884]
[1646227481026,14.6869,102.2,102.1,57.76129884]
[1646227481229,16.50516412,102.2,102.1,57.51129884]
[1646227481432,26.4769,102.2,102.09,3.916]
[1646227481629,42.52749073,102.19,102.03,3.916]
[1646227481831,11.54,102.18,102.03,101.976]
[1646227482029,52.66577169,102.18,102.06,3.916]
[1646227482230,2.2925542,102.17,102.03,3.916]
[1646227482429,22.08838012,102.17,102.06,56.34159295]
[1646227482631,14.6959,102.16,102.03,3.916]
[1646227482831,42.18792084,102.16,101.98,15.456]
[1646227483032,2.2925542,102.15,101.99,104.06]
[1646227483233,2.2925542,102.15,102.0,3.918]
[1646227483434,13.8325542,102.15,102.01,6.0]
[1646227483634,13.8325542,102.15,102.02,57.4435123]
[1646227483834,2.2925542,102.14,102.02,57.4435123]
[1646227484038,14.6987,102.12,102.04,60.47896125]
[1646227484236,76.1622542,102.16,102.06,49.21174464]
[1646227484436,26.7089542,102.16,102.06,49.21174464]
[1646227484634,24.4164,102.16,102.06,49.46174464]
[1646227484935,24.6664,102.16,102.06,49.46174464]
[1646227485135,22.08838012,102.18,102.06,147.52174464]
[1646227485335,56.47277169,102.2,102.07,3.916]
[1646227485534,56.47277169,102.2,102.08,51.22017579]
[1646227485733,56.47277169,102.2,102.08,51.47017579]
[1646227486134,37.43538012,102.2,102.08,51.47017579]
[1646227486737,37.68538012,102.2,102.08,51.47017579]
[1646227486935,2.2925542,102.19,102.08,51.47017579]
[1646227487136,18.5702,102.18,102.08,51.47017579]
[1646227487635,20.8627542,102.18,102.08,51.47017579]
[1646227487836,18.5702,102.18,102.08,51.47017579]
[1646227488641,18.5702,102.18,102.08,109.56017579]
[1646227489041,18.5702,102.18,102.08,207.62017579]
[1646227489440,14.6902,102.18,102.08,207.62017579]
[1646227489940,14.6902,102.18,102.11,44.62795773]
[1646227490141,14.6902,102.18,102.11,142.68795773]
[1646227490339,14.687,102.2,102.11,201.02795773]
[1646227491139,22.6317,102.22,102.11,204.94295773]
[1646227491341,14.684,102.22,102.11,212.56795773]
[1646227491545,14.684,102.22,102.14,115.08078497]
[1646227491742,14.684,102.22,102.14,213.39078497]
[1646227491941,19.79582592,102.26,102.14,213.39078497]
[1646227492146,3.864,102.27,102.14,224.93078497]
[1646227492342,14.6784,102.26,102.17,204.24838855]
[1646227492544,14.6784,102.26,102.17,204.49838855]
[1646227493645,14.6784,102.26,102.17,48.34838855]
[1646227494746,34.47422592,102.26,102.17,48.34838855]
[1646227494944,34.72422592,102.26,102.17,48.34838855]
[1646227495148,14.9284,102.26,102.17,48.34838855]
[1646227496848,14.9284,102.26,102.17,48.09838855]
[1646227497048,11.54,102.25,102.13,3.912]
[1646227497247,14.6864,102.22,102.13,4.162]
[1646227497448,14.6864,102.22,102.11,112.7447]
[1646227497849,14.6864,102.22,102.12,3.915]
[1646227498148,14.6864,102.22,102.13,212.71351702]
[1646227498349,14.6812,102.24,102.16,98.06]
[1646227498750,14.6812,102.24,102.17,46.07429588]
[1646227500152,14.9312,102.24,102.17,46.07429588]
[1646227501052,11.54,102.23,102.1,3.912]
[1646227501253,14.6911,102.19,102.1,3.912]
[1646227501851,14.6911,102.19,102.11,59.1273075]
[1646227502454,14.6911,102.19,102.11,59.3773075]
[1646227502853,14.6911,102.19,102.11,157.4373075]
[1646227504158,14.685,102.21,102.11,205.5273075]
[1646227504353,3.842,102.24,102.13,98.06]
[1646227504553,3.803,102.27,102.16,60.38033081]
[1646227504753,3.803,102.27,102.16,216.15271488]
[1646227504976,3.763,102.28,102.16,218.70175491]
[1646227505177,3.725,102.29,102.16,218.70175491]
[1646227505376,36.72080836,102.29,102.16,218.70175491]
[1646227505676,19.79582592,102.28,102.16,218.70175491]
[1646227505878,3.686,102.27,102.16,218.70175491]
[1646227506179,14.6778,102.26,102.16,218.70175491]
[1646227507276,14.6778,102.26,102.18,44.9695213]
[1646227507476,14.6778,102.26,102.18,45.2195213]
[1646227508079,14.6778,102.26,102.18,44.9695213]
[1646227508678,14.9278,102.26,102.18,44.9695213]
[1646227509480,14.6778,102.26,102.18,44.9695213]
[1646227510180,14.6778,102.26,102.18,45.2195213]
[1646227510580,14.9278,102.26,102.18,45.2195213]
[1646227510879,14.6778,102.26,102.18,45.2195213]
[1646227512684,14.6778,102.26,102.18,44.9695213]
[1646227513485,14.6778,102.26,102.18,143.0295213]
[1646227513887,14.6778,102.26,102.18,143.2795213]
[1646227515485,14.6778,102.26,102.18,201.3695213]
[1646227515885,14.6778,102.26,102.18,143.2795213]
[1646227516285,14.6778,102.26,102.18,143.0295213]
[1646227517887,14.6778,102.26,102.18,201.1195213]
[1646227518088,14.6753,102.28,102.18,201.3695213]
[1646227518689,14.6753,102.28,102.19,0.39737411]
[1646227519693,14.6753,102.28,102.2,156.15]
[1646227519893,14.6753,102.28,102.21,48.749413]
[1646227520092,14.6753,102.28,102.21,205.149413]
[1646227520797,39.6289,102.3,102.21,205.149413]
[1646227520997,14.6723,102.3,102.21,205.149413]
[1646227521396,14.9223,102.3,102.21,205.149413]
[1646227521997,14.9223,102.3,102.21,147.059413]
[1646227522798,37.11047259,102.3,102.21,147.059413]
[1646227523201,37.11047259,102.3,102.21,48.749413]
[1646227523401,39.40934613,102.3,102.21,48.749413]
[1646227523628,40.90868888,102.3,102.18,147.0212]
[1646227523801,14.6804,102.26,102.18,48.9612]
[1646227524004,16.44359568,102.26,102.13,48.6258]
[1646227524204,2.29887354,102.25,102.14,98.06]
[1646227524603,2.29887354,102.25,102.15,51.03998161]
[1646227525004,2.54887354,102.25,102.15,51.03998161]
[1646227525702,14.6832,102.22,102.15,51.28998161]
[1646227527205,14.6832,102.22,102.15,51.03998161]
[1646227527604,14.6832,102.22,102.15,149.09998161]
[1646227528004,14.6832,102.22,102.15,207.18998161]
[1646227528405,14.6807,102.24,102.15,207.18998161]
[1646227529005,71.5281,102.27,102.16,0.41870522]
[1646227529207,24.2356,102.28,102.18,110.0386793]
[1646227529504,24.2356,102.28,102.18,51.74351147]
[1646227529706,14.6782,102.26,102.18,51.74351147]
[1646227532006,14.9282,102.26,102.18,51.74351147]
[1646227532209,14.9282,102.26,102.18,51.49351147]
[1646227533609,14.9282,102.26,102.18,51.74351147]
[1646227535313,14.9282,102.26,102.2,46.25827268]
[1646227537008,14.9282,102.26,102.15,3.912]
[1646227537209,2.29887354,102.25,102.14,23.576]
[1646227537408,14.686,102.22,102.14,23.576]
[1646227538008,14.686,102.22,102.15,44.2318171]
[1646227539008,14.686,102.22,102.14,23.576]
[1646227539212,14.686,102.22,102.12,121.6669]
[1646227539410,16.98487354,102.22,102.12,121.9169]
[1646227540011,17.23487354,102.22,102.13,50.49699472]
[1646227540411,30.55033745,102.22,102.13,50.49699472]
[1646227540611,70.69279963,102.22,102.13,50.49699472]
[1646227540810,95.79509188,102.22,102.08,150.1587]
[1646227541012,119.59839188,102.22,102.09,3.915]
[1646227541417,16.17480218,102.18,102.07,3.915]
[1646227541614,16.98386125,102.17,102.03,122.3584]
[1646227541813,6.18087354,102.17,102.05,98.06]
[1646227542011,6.18087354,102.17,102.06,146.76303907]
[1646227542412,2.29887354,102.17,102.06,204.85303907]
[1646227542612,14.694,102.15,102.06,204.85303907]
[1646227542815,47.6741,102.18,102.08,146.83740376]
[1646227543013,47.6741,102.18,102.08,147.08740376]
[1646227543814,47.6741,102.18,102.08,205.17740376]
[1646227544013,14.691,102.17,102.08,205.17740376]
[1646227544213,33.72817259,102.2,102.08,207.72644379]
[1646227544415,36.0368,102.21,102.11,156.15]
[1646227544613,36.0368,102.21,102.12,54.41951225]
[1646227544814,36.0368,102.21,102.12,54.66951225]
[1646227545216,14.6883,102.19,102.12,54.66951225]
[1646227547119,14.9383,102.19,102.12,54.66951225]
[1646227548218,14.9383,102.19,102.12,54.41951225]
[1646227548417,36.85780592,102.19,102.12,54.41951225]
[1646227548819,36.85780592,102.19,102.08,2.54904003]
[1646227549019,50.16694845,102.19,102.07,75.9765]
[1646227549221,87.03637478,102.19,102.07,72.0615]
[1646227549421,87.03637478,102.19,102.05,3.916]
[1646227549820,14.6967,102.15,102.06,60.10083977]
[1646227550021,16.34829712,102.15,102.06,60.10083977]
[1646227550321,20.91157354,102.15,102.06,60.10083977]
[1646227550523,14.6967,102.15,102.06,158.16083977]
[1646227551220,14.6967,102.15,102.06,60.10083977]
[1646227551623,14.6967,102.15,102.06,158.41083977]
[1646227552020,14.6967,102.15,102.06,60.35083977]
[1646227552428,14.6967,102.15,102.06,216.25083977]
[1646227553426,14.6967,102.15,102.06,158.16083977]
[1646227553646,14.9467,102.15,102.06,158.16083977]
[1646227553847,14.9467,102.15,102.06,158.41083977]
[1646227555348,14.9467,102.15,102.06,60.35083977]
[1646227555551,14.9467,102.15,102.06,216.50083977]
[1646227555749,14.9467,102.15,102.06,60.35083977]
[1646227556151,14.6967,102.15,102.06,118.44083977]
[1646227556352,14.6967,102.15,102.08,148.01438511]
[1646227556651,14.6967,102.15,102.08,148.26438511]
[1646227556857,16.98997354,102.17,102.08,206.35438511]
[1646227557160,41.66892838,102.22,102.08,206.35438511]
[1646227557161,28.4128,102.21,102.09,0.58344232]
[1646227557355,24.4968,102.21,102.09,0.58344232]
[1646227557754,46.41630592,102.21,102.09,0.58344232]
[1646227557962,48.9648,102.2,102.11,48.32740027]
[1646227558158,48.9648,102.2,102.11,48.57740027]
[1646227558354,21.91950592,102.19,102.11,48.57740027]
[1646227558756,20.91950592,102.19,102.11,48.57740027]
[1646227558957,45.29296684,102.19,102.11,48.57740027]
[1646227559157,59.98096684,102.19,102.11,48.57740027]
[1646227559757,60.23096684,102.19,102.11,48.57740027]
[1646227560358,59.98096684,102.19,102.11,48.57740027]
[1646227560559,14.688,102.19,102.11,146.63740027]
[1646227560863,36.52083925,102.19,102.11,48.57740027]
[1646227561261,36.52083925,102.19,102.11,48.32740027]
[1646227561761,36.77083925,102.19,102.11,48.32740027]
[1646227562358,61.14430017,102.19,102.11,48.32740027]
[1646227562760,14.938,102.19,102.11,48.32740027]
[1646227562958,14.938,102.19,102.11,146.38740027]
[1646227563158,14.938,102.19,102.11,48.32740027]
[1646227563361,36.77083925,102.19,102.11,48.32740027]
[1646227563561,65.11490369,102.19,102.08,45.9035]
[1646227563960,76.65490369,102.19,102.08,45.9035]
[1646227564361,193.60871578,102.19,102.05,26.4996]
[1646227564563,3.916,102.18,102.06,57.76461083]
[1646227564762,14.6976,102.15,102.06,57.76461083]
[1646227565162,60.90390017,102.15,102.06,57.76461083]
[1646227565562,64.64952135,102.15,102.05,3.916]
[1646227565762,12.94123876,102.14,102.0,72.943]
[1646227565963,12.94123876,102.14,102.0,58.09]
[1646227565964,14.7009,102.1,102.0,58.09]
[1646227566166,14.7009,102.1,102.01,156.15]
[1646227566362,14.7009,102.1,102.0,98.06]
[1646227566563,14.7009,102.1,102.01,43.79010288]
[1646227567565,14.7009,102.1,102.02,156.15]
[1646227567767,14.7009,102.1,102.03,149.81531719]
[1646227567964,14.7009,102.1,102.03,150.06531719]
[1646227568363,14.9509,102.1,102.03,52.00531719]
[1646227568563,14.9509,102.1,102.03,51.75531719]
[1646227568962,14.7009,102.1,102.03,207.90531719]
[1646227569163,14.6982,102.12,102.03,207.90531719]
[1646227569363,21.83283925,102.14,102.03,207.90531719]
[1646227569562,24.1749,102.15,102.04,0.50189836]
[1646227569764,24.1749,102.15,102.05,167.69]
[1646227569964,24.1749,102.15,102.07,98.06]
[1646227570164,45.16123925,102.16,102.08,54.92165684]
[1646227570364,21.83283925,102.16,102.08,61.61665684]
[1646227571167,2.29887354,102.17,102.08,61.61665684]
[1646227571565,24.38171279,102.17,102.08,61.61665684]
[1646227571765,48.75517371,102.17,102.08,61.36665684]
[1646227571965,3.916,102.16,102.08,54.92165684]
[1646227572165,18.6085,102.16,102.08,54.92165684]
[1646227572367,24.1317257,102.15,102.08,54.92165684]
[1646227572667,21.83283925,102.15,102.08,55.17165684]
[1646227573068,46.20630017,102.15,102.08,55.17165684]
[1646227573668,46.20630017,102.15,102.08,153.23165684]
[1646227573870,46.20630017,102.15,102.08,211.32165684]
[1646227574067,21.83283925,102.17,102.08,211.32165684]
[1646227574267,2.29888645,102.19,102.1,156.15]
[1646227574468,2.29888645,102.21,102.12,156.15]
[1646227574768,2.29888645,102.21,102.13,146.53506323]
[1646227574967,38.8171257,102.21,102.13,204.87506323]
[1646227575169,3.719,102.22,102.13,204.87506323]
[1646227575370,21.83283925,102.23,102.13,204.87506323]
[1646227575770,22.7313,102.24,102.16,147.91275369]
[1646227576073,46.49893925,102.25,102.16,148.16275369]
[1646227576273,53.2536879,102.26,102.16,206.25275369]
[1646227576274,21.83283925,102.24,102.16,206.25275369]
[1646227576474,139.96860644,102.27,102.18,156.15]
[1646227576672,138.64483925,102.27,102.19,148.18182044]
[1646227576874,138.64483925,102.27,102.19,148.43182044]
[1646227577172,134.73283925,102.27,102.19,148.43182044]
[1646227577371,134.73283925,102.27,102.19,206.52182044]
[1646227577572,36.50953925,102.27,102.19,206.52182044]
[1646227577772,25.74483925,102.29,102.19,206.52182044]
[1646227577971,25.74483925,102.29,102.22,50.01504775]
[1646227577972,21.83283925,102.29,102.22,50.01504775]
[1646227578171,21.83283925,102.29,102.22,148.32504775]
[1646227578973,22.08283925,102.29,102.22,148.32504775]
[1646227579171,36.75623925,102.29,102.22,148.32504775]
[1646227579572,36.50623925,102.29,102.22,148.32504775]
[1646227580877,36.75623925,102.29,102.22,148.07504775]
[1646227581276,14.6706,102.31,102.22,108.35504775]
[1646227581478,21.78113808,102.32,102.22,148.32504775]
[1646227581676,1.32376719,102.36,102.23,173.69]
[1646227581877,142.72606968,102.38,102.24,0.51331742]
[1646227582076,116.0544407,102.38,102.26,53.76860011]
[1646227582277,114.73067351,102.38,102.26,65.55860011]
[1646227582476,2.29888645,102.37,102.28,54.55893174]
[1646227582676,2.29888645,102.37,102.28,54.80893174]
[1646227582876,36.49723925,102.36,102.28,54.80893174]
[1646227583277,14.6644,102.36,102.28,54.80893174]
[1646227583477,35.47863426,102.36,102.28,54.80893174]
[1646227583679,55.43947351,102.36,102.28,54.80893174]
[1646227584080,34.62523925,102.36,102.28,54.80893174]
[1646227584478,14.6644,102.36,102.28,54.80893174]
[1646227584880,14.9144,102.36,102.28,54.80893174]
[1646227585481,2.29888645,102.35,102.24,49.1193]
[1646227585682,14.6711,102.32,102.24,24.3073]
[1646227586081,16.96998645,102.32,102.24,24.3073]
[1646227586285,36.9308257,102.32,102.21,22.9936]
[1646227586483,38.70582402,102.32,102.21,52.44653079]
[1646227587084,36.9308257,102.32,102.21,52.44653079]
[1646227587284,36.9308257,102.32,102.22,3.911]
[1646227587502,38.47253068,102.32,102.22,3.911]
[1646227587700,50.01253068,102.32,102.21,52.44653079]
[1646227588104,48.4708257,102.32,102.21,52.44653079]
[1646227588301,36.9308257,102.32,102.21,52.44653079]
[1646227588600,38.39810606,102.32,102.21,52.44653079]
[1646227589001,38.39810606,102.32,102.21,52.69653079]
[1646227589401,42.26610606,102.32,102.21,52.69653079]
[1646227590003,42.51610606,102.32,102.21,52.69653079]
[1646227591005,41.0488257,102.32,102.21,52.69653079]
[1646227591208,41.0488257,102.32,102.21,150.50653079]
[1646227591404,41.0488257,102.32,102.21,208.59653079]
[1646227591606,41.0488257,102.32,102.21,52.44653079]
[1646227592106,42.70748534,102.32,102.21,52.44653079]
[1646227592605,42.70748534,102.32,102.21,52.69653079]
[1646227592806,22.74664609,102.32,102.21,208.84653079]
[1646227593006,21.08798645,102.32,102.21,208.84653079]
[1646227594108,20.83798645,102.32,102.21,208.84653079]
[1646227594308,14.6711,102.32,102.23,156.15]
[1646227594512,14.667,102.34,102.25,156.15]
[1646227594708,14.667,102.34,102.26,149.97000674]
[1646227594910,14.667,102.34,102.26,150.22000674]
[1646227595511,14.667,102.34,102.26,52.16000674]
[1646227596110,14.917,102.34,102.26,52.16000674]
[1646227596710,14.917,102.34,102.26,110.25000674]